fUST/lending_fUST_20241001
["ID","MTS","AMOUNT","RATE_DAILY","PERIOD"]
[339608183,1727739050183,-246.093441,0.00014999,2]
[339608184,1727739050192,-151.0,0.00014999,2]
[339608185,1727739050200,-1520.430926,0.00014999,2]
[339608186,1727739050210,-1520.430926,0.00014999,2]
[339608187,1727739050221,-151.0,0.00014999,2]
[339608188,1727739050231,-151.0,0.00014999,2]
[339608189,1727739050240,-151.0,0.00014999,2]
[339608190,1727739050249,-674.41742,0.00014999,2]
[339608191,1727739050257,-233.024396,0.00014999,2]
[339608192,1727739050267,-674.41742,0.00014999,2]
[339608193,1727739050277,-233.024396,0.00014999,2]
[339608194,1727739050287,-173.364171,0.00014999,2]
[339608195,1727739050297,-173.364171,0.00014999,2]
[339608196,1727739050310,-607.438986,0.00014999,2]
[339608197,1727739050319,-607.438986,0.00014999,2]
[339608198,1727739050329,-151.0,0.00014999,2]
[339608199,1727739050338,-200.352552,0.00014999,2]
[339608200,1727739050347,-200.352552,0.00014999,2]
[339608201,1727739050357,-788.51146,0.00014999,2]
[339608202,1727739050367,-788.51146,0.00014999,2]
[339608203,1727739050376,-160.0,0.00014999,2]
[339608204,1727739050385,-215035.41684814,0.00015,2]
[339608205,1727739050394,-151.0,0.00015,2]
[339608206,1727739050403,-216.550906,0.00015,2]
[339608207,1727739050413,-150.112233,0.00015,2]
[339608208,1727739050422,-150.112233,0.00015,2]
[339608209,1727739050431,-150.112233,0.00015,2]
[339608210,1727739050441,-150.112234,0.00015,2]
[339608211,1727739050450,-151.0,0.00015,2]
[339608212,1727739050460,-151.0,0.00015,2]
[339608213,1727739050470,-151.0,0.00015,2]
[339608214,1727739050479,-151.0,0.00015,2]
[339608215,1727739050488,-151.0,0.00015,2]
[339608216,1727739050497,-291.574202,0.00015,2]
[339608217,1727739050506,-151.0,0.00015,2]
[339608218,1727739050516,-151.0,0.00015,2]
[339608219,1727739050525,-201.27134,0.00015,2]
[339608220,1727739050535,-201.27134,0.00015,2]
[339608221,1727739050544,-201.27134,0.00015,2]
[339608222,1727739050554,-201.27134,0.00015,2]
[339608223,1727739050563,-151.0,0.00015,2]
[339608224,1727739050572,-151.0,0.00015,2]
[339608225,1727739050583,-281.392095,0.00015,2]
[339608226,1727739050592,-281.392095,0.00015,2]
[339608227,1727739050601,-281.392095,0.00015,2]
[339608228,1727739050611,-281.392095,0.00015,2]
[339608229,1727739050621,-151.0,0.00015,2]
[339608230,1727739050669,-151.0,0.00015,2]
[339608231,1727739050679,-151.0,0.00015,2]
[339608232,1727739050688,-151.0,0.00015,2]
[339608233,1727739050697,-1411.058033,0.00015,2]
[339608234,1727739050706,-1411.058033,0.00015,2]
[339608235,1727739050716,-1411.058033,0.00015,2]
[339608236,1727739050726,-1411.058027,0.00015,2]
[339608237,1727739050735,-189.240684,0.00015,2]
[339608238,1727739050744,-204.04728,0.00015,2]
[339608239,1727739050755,-204.04728,0.00015,2]
[339608240,1727739050764,-204.04728,0.00015,2]
[339608241,1727739050774,-204.047274,0.00015,2]
[339608242,1727739050784,-527.012156,0.00015,2]
[339608243,1727739050793,-527.012156,0.00015,2]
[339608244,1727739050803,-527.012156,0.00015,2]
[339608245,1727739050812,-527.01216084,0.00015,2]
[339608246,1727739050822,-151.0,0.00015,2]
[339608247,1727739050831,-151.0,0.00015,2]
[339608248,1727739050841,-151.0,0.00015,2]
[339608249,1727739050850,-151.0,0.00015,2]
[339608250,1727739050860,-371.903394,0.00015,2]
[339608251,1727739050869,-371.903394,0.00015,2]
[339608252,1727739050878,-151.0,0.00015,2]
[339608253,1727739050888,-591.941669,0.00015,2]
[339608254,1727739050897,-591.941669,0.00015,2]
[339608255,1727739050906,-746.449356,0.00015,2]
[339608256,1727739050915,-746.449356,0.00015,2]
[339608257,1727739050925,-746.449356,0.00015,2]
[339608258,1727739050935,-746.449348,0.00015,2]
[339608259,1727739050944,-151.0,0.00015,2]
[339608260,1727739050954,-184.20114,0.00015,2]
[339608261,1727739050964,-648.800009,0.00015,2]
[339608262,1727739050974,-302.608312,0.00015,2]
[339608263,1727739050983,-648.800009,0.00015,2]
[339608264,1727739050992,-302.608312,0.00015,2]
[339608265,1727739051001,-246.093441,0.00015,2]
[339608266,1727739051010,-246.093441,0.00015,2]
[339608267,1727739051019,-1520.430926,0.00015,2]
[339608268,1727739051032,-1520.430926,0.00015,2]
[339608269,1727739051042,-151.0,0.00015,2]
[339608270,1727739051052,-151.0,0.00015,2]
[339608271,1727739051062,-276.604898,0.00015,2]
[339608272,1727739051071,-674.41742,0.00015,2]
[339608273,1727739051082,-233.024396,0.00015,2]
[339608274,1727739051092,-674.41742,0.00015,2]
[339608275,1727739051102,-233.024396,0.00015,2]
[339608276,1727739051112,-173.364171,0.00015,2]
[339608277,1727739051122,-173.364171,0.00015,2]
[339608278,1727739051131,-607.438986,0.00015,2]
[339608279,1727739051141,-607.438976,0.00015,2]
[339608280,1727739051151,-200.352552,0.00015,2]
[339608281,1727739051160,-200.352549,0.00015,2]
[339608282,1727739051169,-788.51146,0.00015,2]
[339608283,1727739051179,-788.511469,0.00015,2]
[339608284,1727739051188,-800.0,0.00015009,2]
[339608285,1727739051198,-805.7021,0.00015011,2]
[339608286,1727739051208,-800.0,0.00015011,2]
[339608287,1727739051222,-150.0,0.00015017,2]
[339608288,1727739051232,-150.0,0.00015045,2]
[339608289,1727739051241,-371.903394,0.00015047,2]
[339608290,1727739051250,-371.903392,0.00015047,2]
[339608291,1727739051259,-151.0,0.00015047,2]
[339608292,1727739051269,-591.941669,0.00015047,2]
[339608293,1727739051278,-591.941677,0.00015047,2]
[339608294,1727739051287,-151.0,0.00015055,2]
[339608295,1727739051297,-648.800009,0.00015055,2]
[339608296,1727739051307,-302.608312,0.00015055,2]
[339608297,1727739051316,-648.800013,0.00015055,2]
[339608298,1727739051326,-302.608322,0.00015055,2]
[339608299,1727739051336,-246.093441,0.00015055,2]
[339608300,1727739051345,-246.093445,0.00015055,2]
[339608301,1727739051354,-1520.430926,0.00015055,2]
[339608302,1727739051364,-1520.430934,0.00015055,2]
[339608303,1727739051373,-229.382488,0.00015055,2]
[339608304,1727739051383,-233.024396,0.00015055,2]
[339608305,1727739051393,-233.024396,0.00015055,2]
[339608306,1727739051402,-150.0,0.00015072,2]
[339608307,1727739051412,-150.0,0.000151,2]
[339608308,1727739051421,-500.0,0.0001511,2]
[339608309,1727739051431,-1000.0,0.0001511,2]
[339608310,1727739051441,-1000.0,0.0001511,2]
[339608311,1727739051450,-1000.0,0.0001511,2]
[339608312,1727739051460,-151.0,0.0001511,2]
[339608313,1727739051470,-674.41742,0.0001511,2]
[339608314,1727739051479,-674.417414,0.0001511,2]
[339608315,1727739051490,-173.364171,0.0001511,2]
[339608316,1727739051504,-173.364168,0.0001511,2]
[339608317,1727739051514,-250.0,0.00015127,2]
[339608318,1727739051524,-3200.0,0.00015128,2]
[339608319,1727739051534,-1500.0,0.00015247,2]
[339608320,1727739051544,-1344.00890144,0.00015247,2]
[339608321,1727739051556,-424.29021689,0.00015247,2]
[339608322,1727739051566,-566.71973835,0.00015384,2]
[339608323,1727739051576,-20614.718468,0.000155,2]
[339608324,1727739051587,-233.024396,0.000155,2]
[339608325,1727739051597,-233.024394,0.000155,2]
[339608326,1727739051608,-151.0,0.00015521,2]
[339608327,1727739051618,-201.27134,0.00015521,2]
[339608328,1727739051628,-201.27134,0.00015521,2]
[339608329,1727739051637,-151.0,0.00015521,2]
[339608330,1727739051647,-151.0,0.00015521,2]
[339608331,1727739051656,-172.822,0.00015557,2]
[339608332,1727739051665,-151.007,0.000156,2]
[339608333,1727739051675,-6359.86732511,0.00015767,2]
[339608334,1727739051684,-500.0,0.00015973,2]
[339608335,1727739051694,-500.0,0.00015973,2]
[339608336,1727739051703,-184.0,0.00016,2]
[339608337,1727739051713,-32386.0,0.00016,2]
[339608338,1727739051723,-39100.0,0.00016,2]
[339608339,1727739051733,-233.251138,0.00016,2]
[339608340,1727739051743,-201.27134,0.00016,2]
[339608341,1727739051752,-201.27134,0.00016,2]
[339608342,1727739051761,-201.27134,0.00016,2]
[339608343,1727739051771,-201.271346,0.00016,2]
[339608344,1727739051780,-151.0,0.00016,2]
[339608345,1727739051791,-151.0,0.00016,2]
[339608346,1727739051802,-396.895639,0.00016,2]
[339608347,1727739051812,-396.895648,0.00016,2]
[339608348,1727739051822,-281.392095,0.00016,2]
[339608349,1727739051831,-281.392095,0.00016,2]
[339608350,1727739051841,-281.392095,0.00016,2]
[339608351,1727739051850,-281.392095,0.00016,2]
[339608352,1727739051860,-3000.0,0.00016,2]
[339608353,1727739051869,-3000.0,0.0001601,2]
[339608354,1727739051879,-3000.0,0.0001602,2]
[339608355,1727739051888,-3000.0,0.0001603,2]
[339608356,1727739051898,-3000.0,0.0001604,2]
[339608357,1727739051907,-3000.0,0.0001605,2]
[339608358,1727739051917,-3000.0,0.0001606,2]
[339608359,1727739051926,-3000.0,0.0001607,2]
[339608360,1727739051936,-281.392095,0.0001608,2]
[339608361,1727739051945,-281.392091,0.0001608,2]
[339608362,1727739051955,-3000.0,0.0001608,2]
[339608363,1727739051965,-3000.0,0.0001609,2]
[339608364,1727739051974,-420.0,0.00016092,2]
[339608365,1727739051984,-3000.0,0.000161,2]
[339608366,1727739051994,-151.036,0.000161,2]
[339608367,1727739052003,-1148.19603961,0.0001611,2]
[339608368,1727739052014,-1000.0,0.0001611,2]
[339608369,1727739052023,-3000.0,0.0001611,2]
[339608370,1727739052032,-3000.0,0.0001612,2]
[339608371,1727739052042,-3000.0,0.0001613,2]
[339608372,1727739052053,-3000.0,0.0001614,2]
[339608373,1727739052062,-3000.0,0.0001615,2]
[339608374,1727739052072,-3000.0,0.0001616,2]
[339608375,1727739052081,-3000.0,0.0001617,2]
[339608376,1727739052091,-3000.0,0.0001618,2]
[339608377,1727739052102,-3000.0,0.0001619,2]
[339608378,1727739052111,-1500.0,0.000162,2]
[339608379,1727739052121,-1500.0,0.000162,2]
[339608380,1727739052130,-1500.0,0.000162,2]
[339608381,1727739052139,-1500.0,0.000162,2]
[339608382,1727739052149,-1500.0,0.000162,2]
[339608383,1727739052158,-1500.0,0.000162,2]
[339608384,1727739052168,-1534.27,0.000162,2]
[339608385,1727739052178,-1500.0,0.000162,2]
[339608386,1727739052187,-1500.0,0.000162,2]
[339608387,1727739052196,-1500.0,0.000162,2]
[339608388,1727739052206,-1500.0,0.000162,2]
[339608389,1727739052219,-3000.0,0.000162,2]
[339608390,1727739052229,-3000.0,0.0001621,2]
[339608391,1727739052238,-3000.0,0.0001622,2]
[339608392,1727739052248,-3000.0,0.0001623,2]
[339608393,1727739052257,-3000.0,0.0001624,2]
[339608394,1727739052266,-151.75054518,0.00016242,2]
[339608395,1727739052276,-1500.0,0.00016247,2]
[339608396,1727739052285,-3000.0,0.0001625,2]
[339608397,1727739052294,-300.0,0.00016256,2]
[339608398,1727739052305,-500.0,0.00016257,2]
[339608399,1727739052314,-500.0,0.00016257,2]
[339608400,1727739052323,-507.70077374,0.00016257,2]
[339608401,1727739052333,-500.0,0.00016257,2]
[339608402,1727739052342,-500.0,0.00016257,2]
[339608403,1727739052351,-500.0,0.00016257,2]
[339608404,1727739052361,-607.55261792,0.00016257,2]
[339608405,1727739052370,-500.0,0.00016258,2]
[339608406,1727739052379,-500.0,0.00016258,2]
[339608407,1727739052389,-3000.0,0.0001626,2]
[339608408,1727739052398,-3000.0,0.0001627,2]
[339608409,1727739052407,-3000.0,0.0001628,2]
[339608410,1727739052417,-3000.0,0.0001629,2]
[339608411,1727739052426,-500.0,0.00016292,2]
[339608412,1727739052435,-3000.0,0.000163,2]
[339608413,1727739052445,-3000.0,0.0001631,2]
[339608414,1727739052454,-3000.0,0.0001632,2]
[339608415,1727739052464,-3000.0,0.0001633,2]
[339608416,1727739052474,-3000.0,0.0001634,2]
[339608417,1727739052483,-3000.0,0.0001635,2]
[339608418,1727739052492,-3000.0,0.0001636,2]
[339608419,1727739052502,-3000.0,0.0001637,2]
[339608420,1727739052511,-3000.0,0.0001638,2]
[339608421,1727739052520,-340.10878567,0.00016384,2]
[339608422,1727739052529,-3000.0,0.0001639,2]
[339608423,1727739052539,-1000.0,0.00016394,2]
[339608424,1727739052549,-1000.0,0.00016394,2]
[339608425,1727739052558,-175.11015426,0.00016394,2]
[339608426,1727739052568,-1000.0,0.00016394,2]
[339608427,1727739052577,-300.97594335,0.00016394,2]
[339608428,1727739052586,-383.09768856,0.00016395,2]
[339608429,1727739052596,-1000.0,0.00016395,2]
[339608430,1727739052607,-3000.0,0.000164,2]
[339608431,1727739052617,-3000.0,0.0001641,2]
[339608432,1727739052627,-3000.0,0.0001642,2]
[339608433,1727739052637,-1038.64285696,0.00016429,2]
[339608434,1727739052646,-3000.0,0.0001643,2]
[339608435,1727739052656,-400.3,0.00016438,2]
[339608436,1727739052666,-289.271099,0.00016438,2]
[339608437,1727739052676,-336.35078,0.00016438,2]
[339608438,1727739052685,-336.35078,0.00016438,2]
[339608439,1727739052695,-336.35078,0.00016438,2]
[339608440,1727739052705,-336.35078,0.00016438,2]
[339608441,1727739052715,-336.35078,0.00016438,2]
[339608442,1727739052725,-336.35078,0.00016438,2]
[339608443,1727739052736,-336.35078,0.00016438,2]
[339608444,1727739052746,-336.35078,0.00016438,2]
[339608445,1727739052756,-336.35078,0.00016438,2]
[339608446,1727739052765,-336.35078,0.00016438,2]
[339608447,1727739052775,-336.35078,0.00016438,2]
[339608448,1727739052785,-336.35078,0.00016438,2]
[339608449,1727739052795,-336.35078,0.00016438,2]
[339608450,1727739052811,-336.35078,0.00016438,2]
[339608451,1727739052821,-336.35078,0.00016438,2]
[339608452,1727739052830,-336.35078,0.00016438,2]
[339608453,1727739052840,-336.35078,0.00016438,2]
[339608454,1727739052849,-336.35078,0.00016438,2]
[339608455,1727739052858,-336.35078,0.00016438,2]
[339608456,1727739052867,-336.35077,0.00016438,2]
[339608457,1727739052877,-3000.0,0.0001644,2]
[339608458,1727739052886,-3000.0,0.0001645,2]
[339608459,1727739052896,-3000.0,0.0001646,2]
[339608460,1727739052906,-3000.0,0.0001647,2]
[339608461,1727739052915,-3000.0,0.0001648,2]
[339608462,1727739052925,-3000.0,0.0001649,2]
[339608463,1727739052935,-3000.0,0.000165,2]
[339608464,1727739052945,-3000.0,0.0001651,2]
[339608465,1727739052955,-3000.0,0.0001652,2]
[339608466,1727739052965,-3000.0,0.0001653,2]
[339608467,1727739052975,-375.22448258,0.00016531,2]
[339608468,1727739052984,-1500.0,0.00016531,2]
[339608469,1727739052994,-1008.2655006,0.00016531,2]
[339608470,1727739053003,-1500.0,0.00016532,2]
[339608471,1727739053014,-3000.0,0.0001654,2]
[339608472,1727739053024,-3000.0,0.0001655,2]
[339608473,1727739053035,-3000.0,0.0001656,2]
[339608474,1727739053045,-3000.0,0.0001657,2]
[339608475,1727739053058,-3000.0,0.0001658,2]
[339608476,1727739053068,-3000.0,0.0001659,2]
[339608477,1727739053078,-3000.0,0.000166,2]
[339608478,1727739053088,-3000.0,0.0001661,2]
[339608479,1727739053098,-3000.0,0.0001662,2]
[339608480,1727739053108,-3000.0,0.0001663,2]
[339608481,1727739053118,-3282.633547,0.0001664,2]
[339608482,1727739053129,-2000.0,0.00016668,2]
[339608483,1727739053138,-1269.53116766,0.00016669,2]
[339608484,1727739053148,-4418.0,0.000167,2]
[339608485,1727739053158,-400.3,0.00016712,2]
[339608486,1727739053168,-153.0,0.00016735,2]
[339608487,1727739053178,-153.0,0.00016735,2]
[339608488,1727739053188,-153.0,0.00016735,2]
[339608489,1727739053198,-395.45186283,0.000168,3]
[339608490,1727739053207,-150.0,0.000168,2]
[339608491,1727739053217,-2500.0,0.00016805,2]
[339608492,1727739053227,-3000.0,0.00016942,2]
[339608493,1727739053237,-400.3,0.00016986,2]
[339608494,1727739053248,-1000.0,0.00017,17]
[339608495,1727739053258,-500.0,0.00017,4]
[339608496,1727739053268,-151.071,0.00017,2]
[339608497,1727739053278,-153.0,0.00017064,2]
[339608498,1727739053288,-153.0,0.00017064,2]
[339608499,1727739053297,-153.0,0.00017064,2]
[339608500,1727739053308,-3500.0,0.00017079,2]
[339608501,1727739053318,-151.0,0.00017178,2]
[339608502,1727739053328,-4000.0,0.00017216,2]
[339608503,1727739053338,-400.3,0.0001726,2]
[339608504,1727739053348,-4500.0,0.00017353,2]
[339608505,1727739053358,-5000.0,0.0001749,2]
[339608506,1727739053368,-3125.53696847,0.00017496,2]
[339608507,1727739053378,-400.3,0.00017534,2]
[339608508,1727739053388,-587.0,0.00017617,2]
[339608509,1727739053398,-5500.0,0.00017627,2]
[339608510,1727739053408,-6000.0,0.00017764,2]
[339608511,1727739053418,-400.3,0.00017808,2]
[339608512,1727739053428,-151.0,0.00017808,2]
[339608513,1727739053438,-151.0,0.00017808,2]
[339608514,1727739053448,-151.0,0.00017808,2]
[339608515,1727739053458,-151.0,0.00017808,2]
[339608516,1727739053469,-151.0,0.00017808,2]
[339608517,1727739053479,-151.0,0.00017808,2]
[339608518,1727739053489,-151.0,0.00017808,2]
[339608519,1727739053499,-151.0,0.00017808,2]
[339608520,1727739053508,-151.0,0.00017808,2]
[339608521,1727739053519,-151.0,0.00017808,2]
[339608522,1727739053529,-151.0,0.00017808,2]
[339608523,1727739053540,-151.0,0.00017808,2]
[339608524,1727739053551,-151.0,0.00017808,2]
[339608525,1727739053561,-202.15195,0.00017808,2]
[339608526,1727739053571,-153.885685,0.00017829,2]
[339608527,1727739053581,-153.0,0.00017829,2]
[339608528,1727739053591,-153.0,0.00017829,2]
[339608529,1727739053601,-153.0,0.00017829,2]
[339608530,1727739053611,-153.0,0.00017829,2]
[339608531,1727739053621,-153.0,0.00017829,2]
[339608532,1727739053632,-306.0,0.00017829,2]
[339608533,1727739053642,-153.0,0.00017829,2]
[339608534,1727739053652,-153.0,0.00017829,2]
[339608535,1727739053662,-153.0,0.00017829,2]
[339608536,1727739053673,-153.0,0.00017829,2]
[339608537,1727739053683,-153.0,0.00017829,2]
[339608538,1727739053694,-153.0,0.00017829,2]
[339608539,1727739053704,-153.0,0.00017829,2]
[339608540,1727739053716,-153.0,0.00017829,2]
[339608541,1727739053727,-153.0,0.00017829,2]
[339608542,1727739053737,-153.0,0.00017829,2]
[339608543,1727739053747,-153.0,0.00017829,2]
[339608544,1727739053757,-153.0,0.00017829,2]
[339608545,1727739053767,-153.0,0.00017829,2]
[339608546,1727739053777,-153.0,0.00017829,2]
[339608547,1727739053787,-153.0,0.00017829,2]
[339608548,1727739053797,-153.0,0.00017829,2]
[339608549,1727739053811,-153.0,0.00017886,2]
[339608550,1727739053821,-6500.0,0.00017901,2]
[339608551,1727739053832,-600.24632575,0.00017977,2]
[339608552,1727739053841,-153.0,0.00017993,2]
[339608553,1727739053851,-160.0,0.00018,2]
[339608554,1727739053862,-5305.55623281,0.00018,2]
[339608555,1727739053872,-185.0,0.00018,2]
[339608556,1727739053882,-8428.28662056,0.00018,10]
[339608557,1727739053892,-14249.40546555,0.00018,10]
[339608558,1727739053902,-1043.7,0.00018,5]
[339608559,1727739053913,-1052.30302073,0.00018,2]
[339608560,1727739053924,-207.3633402,0.00018,2]
[339608561,1727739053934,-890.93791744,0.00018038,2]
[339608562,1727739053944,-400.3,0.00018082,2]
[339608563,1727739053955,-153.0,0.00018158,2]
[339608564,1727739053965,-153.0,0.00018158,2]
[339608565,1727739053974,-153.0,0.00018158,2]
[339608566,1727739053984,-153.0,0.00018158,2]
[339608567,1727739053994,-153.0,0.00018158,2]
[339608568,1727739054004,-153.0,0.00018158,2]
[339608569,1727739054014,-153.0,0.00018158,2]
[339608570,1727739054023,-153.0,0.00018158,2]
[339608571,1727739054033,-153.0,0.00018158,2]
[339608572,1727739054042,-153.0,0.0001819,2]
[339608573,1727739054052,-153.0,0.0001819,2]
[339608574,1727739054062,-153.0,0.0001819,2]
[339608575,1727739054072,-153.0,0.0001819,2]
[339608576,1727739054082,-153.0,0.0001819,2]
[339608577,1727739054092,-153.0,0.0001819,2]
[339608578,1727739054102,-153.0,0.0001819,2]
[339608579,1727739054112,-400.3,0.00018356,2]
[339608580,1727739054122,-153.0,0.00018574,2]
[339608581,1727739054131,-153.0,0.00018574,2]
[339608582,1727739054141,-153.0,0.00018574,2]
[339608583,1727739054151,-153.0,0.00018574,2]
[339608584,1727739054162,-153.0,0.00018574,2]
[339608585,1727739054171,-153.0,0.00018574,2]
[339608586,1727739054181,-153.0,0.00018574,2]
[339608587,1727739054192,-153.0,0.00018574,2]
[339608588,1727739054202,-153.0,0.00018574,2]
[339608589,1727739054214,-153.0,0.00018574,2]
[339608590,1727739054225,-151.062,0.000186,2]
[339608591,1727739054235,-400.3,0.0001863,2]
[339608592,1727739054245,-1355.87973482,0.000188,2]
[339608593,1727739054255,-400.3,0.00018904,2]
[339608594,1727739054265,-5000.0,0.00018904,2]
[339608595,1727739054274,-5000.0,0.00018904,2]
[339608596,1727739054284,-1030.56841598,0.00018904,2]
[339608597,1727739054295,-202.04901172,0.00018973,2]
[339608598,1727739054306,-150.0,0.00018973,2]
[339608599,1727739054316,-309.20853301,0.00018975,2]
[339608600,1727739054326,-162219.814377,0.00018976,2]
[339608601,1727739054336,-200.0,0.00019,2]
[339608602,1727739054346,-11013.158061,0.00019,2]
[339608603,1727739054356,-10000.0,0.00019,4]
[339608604,1727739054366,-1997.5,0.00019,5]
[339608605,1727739054377,-1000.0,0.00019,2]
[339608606,1727739054387,-17507.12794441,0.00019,2]
[339608607,1727739054397,-2000.0,0.00019,7]
[339608608,1727739054407,-153.07849604,0.00019,2]
[339608609,1727739054418,-6810.45089308,0.00019,2]
[339608610,1727739054428,-1360.26445981,0.00019,2]
[339608611,1727739054438,-153.0,0.00019037,2]
[339608612,1727739054448,-153.0,0.00019037,2]
[339608613,1727739054459,-153.0,0.00019037,2]
[339608614,1727739054470,-942.02,0.000191,31]
[339608615,1727739054480,-942.02,0.000191,31]
[339608616,1727739054491,-942.02,0.000191,31]
[339608617,1727739054501,-942.02,0.000191,31]
[339608618,1727739054511,-942.02,0.000191,31]
[339608619,1727739054521,-942.02,0.000191,31]
[339608620,1727739054531,-942.02,0.000191,31]
[339608621,1727739054541,-942.02,0.000191,31]
[339608622,1727739054552,-942.02,0.000191,31]
[339608623,1727739054563,-942.02,0.000191,31]
[339608624,1727739054572,-942.02,0.000191,31]
[339608625,1727739054583,-942.02,0.000191,31]
[339608626,1727739054592,-942.02,0.000191,31]
[339608627,1727739054603,-942.02,0.000191,31]
[339608628,1727739054613,-942.02,0.000191,31]
[339608629,1727739054623,-942.02,0.000191,31]
[339608630,1727739054633,-2000.0,0.00019178,2]
[339608631,1727739054643,-400.3,0.00019178,2]
[339608632,1727739054654,-376.845685,0.00019178,2]
[339608633,1727739054664,-445.602606,0.00019178,4]
[339608634,1727739054674,-823.0,0.00019287,2]
[339608635,1727739054685,-153.0,0.00019309,2]
[339608636,1727739054695,-153.0,0.00019309,2]
[339608637,1727739054705,-23447.78660753,0.00019382,10]
[339608638,1727739054714,-412.5224329,0.00019396,2]
[339608639,1727739054725,-412.5224329,0.00019396,2]
[339608640,1727739054735,-412.5224329,0.00019396,2]
[339608641,1727739054746,-153.0,0.00019396,2]
[339608642,1727739054757,-412.5224329,0.00019396,2]
[339608643,1727739054767,-412.5224329,0.00019396,2]
[339608644,1727739054777,-153.0,0.00019396,2]
[339608645,1727739054787,-412.5224329,0.00019396,2]
[339608646,1727739054797,-412.5224329,0.00019396,2]
[339608647,1727739054808,-412.5224329,0.00019396,2]
[339608648,1727739054818,-153.0,0.00019396,2]
[339608649,1727739054828,-412.5224329,0.00019396,2]
[339608650,1727739054838,-153.0,0.00019396,2]
[339608651,1727739054847,-153.0,0.00019396,2]
[339608652,1727739054857,-412.5224329,0.00019396,2]
[339608653,1727739054867,-412.5224329,0.00019396,2]
[339608654,1727739054877,-153.0,0.00019396,2]
[339608655,1727739054887,-412.5224329,0.00019396,2]
[339608656,1727739054898,-412.5224329,0.00019396,2]
[339608657,1727739054908,-412.5224329,0.00019396,2]
[339608658,1727739054918,-412.5224329,0.00019396,2]
[339608659,1727739054929,-825.0448658,0.00019396,2]
[339608660,1727739054939,-825.0448658,0.00019396,2]
[339608661,1727739054949,-412.5224329,0.00019396,2]
[339608662,1727739054959,-412.5224329,0.00019396,2]
[339608663,1727739054969,-825.0448658,0.00019396,2]
[339608664,1727739054980,-412.5224329,0.00019396,2]
[339608665,1727739054989,-412.5224329,0.00019396,2]
[339608666,1727739054999,-412.5224329,0.00019396,2]
[339608667,1727739055009,-412.5224329,0.00019396,2]
[339608668,1727739055021,-412.5224329,0.00019396,2]
[339608669,1727739055031,-412.5224329,0.00019396,2]
[339608670,1727739055042,-412.5224329,0.00019396,2]
[339608671,1727739055052,-412.5224329,0.00019396,2]
[339608672,1727739055062,-222.5226445,0.00019396,2]
[339608673,1727739055072,-400.3,0.00019452,2]
[339608674,1727739055083,-250.0,0.00019521,2]
[339608675,1727739055094,-153.0,0.00019533,2]
[339608676,1727739055104,-153.0,0.00019533,2]
[339608677,1727739055114,-306.0,0.00019533,2]
[339608678,1727739055124,-153.0,0.00019533,2]
[339608679,1727739055135,-153.0,0.00019533,2]
[339608680,1727739055146,-153.0,0.00019533,2]
[339608681,1727739055156,-153.0,0.00019533,2]
[339608682,1727739055167,-153.0,0.00019533,2]